fUSD/lending_fUSD_20250607
["ID","MTS","AMOUNT","RATE_DAILY","PERIOD"]
[364859805,1749279047443,-1569.25,0.00027397,5]
[364859806,1749279047569,-480.0,0.00027397,5]
[364859807,1749279047581,-718.22,0.00027397,5]
[364859808,1749279047591,-480.0,0.00027397,5]
[364859809,1749279047600,-480.0,0.00027397,5]
[364859810,1749279047610,-420.0,0.00027397,5]
[364859811,1749279047619,-480.0,0.00027397,5]
[364859812,1749279047628,-480.0,0.00027397,5]
[364859813,1749279047638,-484.40155999,0.00027397,5]
[364859814,1749279047647,-480.0,0.00027397,5]
[364859815,1749279047657,-497.04,0.00027397,5]
[364859816,1749279047666,-480.0,0.00027397,5]
[364859817,1749279047676,-1143.16,0.00027397,5]
[364859818,1749279047685,-466.89576298,0.00027397,5]
[364859819,1749279047695,-480.0,0.00027397,5]
[364859820,1749279047704,-500.0,0.00027397,5]
[364859821,1749279047714,-7442.43,0.00027397,5]
[364859822,1749279047723,-2644.51,0.00027397,5]
[364859823,1749279047733,-420.42381241,0.00027397,5]
[364859824,1749279047744,-150.0,0.00027397,2]
[364859825,1749279047754,-480.0,0.00027397,5]
[364859826,1749279047764,-478.32592417,0.00027397,5]
[364859827,1749279047774,-480.0,0.00027397,5]
[364859828,1749279047783,-480.0,0.00027397,5]
[364859829,1749279047793,-500.0,0.00027397,2]
[364859830,1749279047804,-1122.69,0.00027397,5]
[364859831,1749279047816,-500.0,0.00027397,2]
[364859832,1749279047825,-480.0,0.00027397,5]
[364859833,1749279047835,-500.0,0.00027397,2]
[364859834,1749279047844,-480.0,0.00027397,5]
[364859835,1749279047854,-500.0,0.00027397,5]
[364859836,1749279047863,-500.0,0.00027397,2]
[364859837,1749279047873,-500.0,0.00027397,5]
[364859838,1749279047882,-500.0,0.00027397,2]
[364859839,1749279047891,-757.09,0.00027397,5]
[364859840,1749279047902,-500.0,0.00027397,5]
[364859841,1749279047911,-500.0,0.00027397,2]
[364859842,1749279047921,-480.0,0.00027397,5]
[364859843,1749279047930,-500.0,0.00027397,2]
[364859844,1749279047940,-500.0,0.00027397,5]
[364859845,1749279047950,-504.98593338,0.00027397,5]
[364859846,1749279047960,-480.0,0.00027397,5]
[364859847,1749279047970,-2227.22,0.00027397,5]
[364859848,1749279047980,-1675.33,0.00027397,5]
[364859849,1749279047990,-501.16294386,0.00027397,5]
[364859850,1749279047999,-6110.32,0.00027397,5]
[364859851,1749279048009,-524.15897064,0.00027397,5]
[364859852,1749279048018,-480.0,0.00027397,5]
[364859853,1749279048027,-1031.35,0.00027397,5]
[364859854,1749279048037,-480.0,0.00027397,5]
[364859855,1749279048047,-495.25761186,0.00027397,5]
[364859856,1749279048057,-480.0,0.00027397,5]
[364859857,1749279048067,-3612.7,0.00027397,5]
[364859858,1749279048076,-480.0,0.00027397,5]
[364859859,1749279048086,-1395.07,0.00027397,5]
[364859860,1749279048096,-1017.00083755,0.00027397,5]
[364859861,1749279048106,-480.0,0.00027397,5]
[364859862,1749279048116,-464.75531448,0.00027397,5]
[364859863,1749279048126,-4322.98,0.00027397,5]
[364859864,1749279048136,-480.0,0.00027397,5]
[364859865,1749279048145,-480.0,0.00027397,5]
[364859866,1749279048155,-496.88810002,0.00027397,5]
[364859867,1749279048166,-1049.48,0.00027397,5]
[364859868,1749279048176,-543.19172869,0.00027397,5]
[364859869,1749279048186,-480.0,0.00027397,5]
[364859870,1749279048196,-480.0,0.00027397,5]
[364859871,1749279048206,-835.24,0.00027397,5]
[364859872,1749279048216,-480.0,0.00027397,5]
[364859873,1749279048226,-480.0,0.00027397,5]
[364859874,1749279048236,-480.0,0.00027397,5]
[364859875,1749279048247,-480.0,0.00027397,5]
[364859876,1749279048257,-480.0,0.00027397,5]
[364859877,1749279048267,-11491.09,0.00027397,5]
[364859878,1749279048278,-480.0,0.00027397,5]
[364859879,1749279048289,-487.93759293,0.00027397,5]
[364859880,1749279048298,-480.0,0.00027397,5]
[364859881,1749279048308,-5571.7,0.00027397,5]
[364859882,1749279048320,-480.0,0.00027397,5]
[364859883,1749279048329,-491.67404145,0.00027397,5]
[364859884,1749279048339,-16410.82,0.00027397,5]
[364859885,1749279048350,-480.0,0.00027397,5]
[364859886,1749279048360,-500.0,0.00027397,5]
[364859887,1749279048370,-500.0,0.00027397,5]
[364859888,1749279048380,-435.19553468,0.00027397,5]
[364859889,1749279048390,-500.0,0.00027397,5]
[364859890,1749279048400,-180.27429648,0.00027397,5]
[364859891,1749279048409,-248.24710004,0.00027397,5]
[364859892,1749279048419,-480.0,0.00027397,5]
[364859893,1749279048430,-886.47,0.00027397,5]
[364859894,1749279048442,-835.48,0.00027397,5]
[364859895,1749279048453,-3593.96,0.00027397,5]
[364859896,1749279048463,-480.0,0.00027397,5]
[364859897,1749279048473,-480.0,0.00027397,5]
[364859898,1749279048484,-480.0,0.00027397,5]
[364859899,1749279048494,-747.9,0.00027397,5]
[364859900,1749279048504,-1529.93,0.00027397,5]
[364859901,1749279048514,-659.1,0.00027397,5]
[364859902,1749279048525,-480.0,0.00027397,5]
[364859903,1749279048534,-162.958386,0.00027397,5]
[364859904,1749279048544,-1133.26,0.00027397,5]
[364859905,1749279048553,-480.0,0.00027397,5]
[364859906,1749279048563,-480.0,0.00027397,5]
[364859907,1749279048574,-1578.37,0.00027397,5]
[364859908,1749279048583,-1671.59,0.00027397,5]
[364859909,1749279048594,-480.0,0.00027397,5]
[364859910,1749279048604,-480.0,0.00027397,5]
[364859911,1749279048613,-480.0,0.00027397,5]
[364859912,1749279048624,-492.93793836,0.00027397,5]
[364859913,1749279048634,-494.08,0.00027397,5]
[364859914,1749279048643,-480.0,0.00027397,5]
[364859915,1749279048653,-2996.31,0.00027397,5]
[364859916,1749279048663,-509.4296095,0.00027397,5]
[364859917,1749279048673,-665.9,0.00027397,5]
[364859918,1749279048683,-1656.96,0.00027397,5]
[364859919,1749279048692,-480.0,0.00027397,5]
[364859920,1749279048703,-897.55,0.00027397,5]
[364859921,1749279048712,-630.74,0.00027397,5]
[364859922,1749279048722,-428.43001528,0.00027397,5]
[364859923,1749279048732,-480.0,0.00027397,5]
[364859924,1749279048742,-4128.07,0.00027397,5]
[364859925,1749279048751,-915.66,0.00027397,5]
[364859926,1749279048760,-480.0,0.00027397,5]
[364859927,1749279048770,-489.68581883,0.00027397,5]
[364859928,1749279048780,-980.64,0.00027397,5]
[364859929,1749279048790,-500.0,0.00027397,5]
[364859930,1749279048799,-500.0,0.00027397,5]
[364859931,1749279048808,-501.57789469,0.00027397,5]
[364859932,1749279048818,-486.13879497,0.00027397,5]
[364859933,1749279048828,-427.63162811,0.00027397,5]
[364859934,1749279048837,-656.54,0.00027397,5]
[364859935,1749279048847,-480.0,0.00027397,5]
[364859936,1749279048856,-484.70254304,0.00027397,5]
[364859937,1749279048866,-480.0,0.00027397,5]
[364859938,1749279048875,-60736.15,0.00027397,5]
[364859939,1749279048884,-764.82,0.00027397,5]
[364859940,1749279048894,-607.22,0.00027397,5]
[364859941,1749279048903,-642.18,0.00027397,5]
[364859942,1749279048913,-590.0,0.00027397,5]
[364859943,1749279048922,-1380.43,0.00027397,5]
[364859944,1749279048931,-492.12,0.00027397,5]
[364859945,1749279048941,-3160.19,0.00027397,5]
[364859946,1749279048950,-702.18,0.00027397,5]
[364859947,1749279048960,-480.0,0.00027397,5]
[364859948,1749279048969,-5617.32,0.00027397,5]
[364859949,1749279048979,-480.0,0.00027397,5]
[364859950,1749279048989,-480.0,0.00027397,5]
[364859951,1749279048998,-480.0,0.00027397,5]
[364859952,1749279049009,-480.0,0.00027397,5]
[364859953,1749279049019,-480.0,0.00027397,5]
[364859954,1749279049028,-833.32,0.00027397,5]
[364859955,1749279049038,-2761.33,0.00027397,5]
[364859956,1749279049048,-2761.33,0.00027397,5]
[364859957,1749279049058,-2761.33,0.00027397,5]
[364859958,1749279049070,-2761.33,0.00027397,5]
[364859959,1749279049079,-2761.33,0.00027397,5]
[364859960,1749279049090,-480.0,0.00027397,5]
[364859961,1749279049099,-2761.33,0.00027397,5]
[364859962,1749279049109,-480.0,0.00027397,5]
[364859963,1749279049120,-2761.33,0.00027397,5]
[364859964,1749279049131,-480.0,0.00027397,5]
[364859965,1749279049141,-2761.33,0.00027397,5]
[364859966,1749279049151,-2761.33,0.00027397,5]
[364859967,1749279049161,-2050.72,0.00027397,5]
[364859968,1749279049171,-2761.33,0.00027397,5]
[364859969,1749279049180,-2761.33,0.00027397,5]
[364859970,1749279049190,-2761.33,0.00027397,5]
[364859971,1749279049199,-2761.33,0.00027397,5]
[364859972,1749279049209,-2761.33,0.00027397,5]
[364859973,1749279049220,-10955.06,0.00027397,5]
[364859974,1749279049230,-3452.23,0.00027397,5]
[364859975,1749279049240,-480.0,0.00027397,5]
[364859976,1749279049250,-480.0,0.00027397,5]
[364859977,1749279049260,-480.0,0.00027397,2]
[364859978,1749279049270,-2181.17,0.00027397,5]
[364859979,1749279049280,-1104.11,0.00027397,5]
[364859980,1749279049290,-551.18949792,0.00027397,5]
[364859981,1749279049301,-480.0,0.00027397,5]
[364859982,1749279049311,-407.11136607,0.00027397,5]
[364859983,1749279049322,-482.818438,0.00027397,5]
[364859984,1749279049332,-1091.22,0.00027397,5]
[364859985,1749279049343,-480.0,0.00027397,5]
[364859986,1749279049353,-276.17416622,0.00027397,5]
[364859987,1749279049363,-697.95,0.00027397,5]
[364859988,1749279049374,-480.0,0.00027397,5]
[364859989,1749279049384,-433.47910582,0.00027397,5]
[364859990,1749279049394,-2538.94,0.00027397,5]
[364859991,1749279049404,-1741.11,0.00027397,5]
[364859992,1749279049414,-480.0,0.00027397,5]
[364859993,1749279049425,-480.6584502,0.00027397,5]
[364859994,1749279049437,-480.0,0.00027397,5]
[364859995,1749279049447,-480.0,0.00027397,5]
[364859996,1749279049457,-5511.22,0.00027397,5]
[364859997,1749279049468,-749.65,0.00027397,5]
[364859998,1749279049478,-480.0,0.00027397,2]
[364859999,1749279049487,-1892.42,0.00027397,5]
[364860000,1749279049498,-929.79,0.00027397,5]
[364860001,1749279049508,-1072.0,0.00027397,5]
[364860002,1749279049518,-407.42693088,0.00027397,5]
[364860003,1749279049528,-480.0,0.00027397,5]
[364860004,1749279049538,-480.0,0.00027397,5]
[364860005,1749279049548,-480.0,0.00027397,5]
[364860006,1749279049557,-480.0,0.00027397,5]
[364860007,1749279049568,-1739.86,0.00027397,5]
[364860008,1749279049578,-480.0,0.00027397,5]
[364860009,1749279049587,-816.17,0.00027397,5]
[364860010,1749279049597,-480.08528522,0.00027397,2]
[364860011,1749279049607,-480.0,0.00027397,5]
[364860012,1749279049616,-480.0,0.00027397,5]
[364860013,1749279049625,-480.0,0.00027397,5]
[364860014,1749279049635,-480.0,0.00027397,5]
[364860015,1749279049644,-1946.64,0.00027397,5]
[364860016,1749279049654,-300.0,0.00027397,2]
[364860017,1749279049663,-150.0,0.00027397,2]
[364860018,1749279049672,-5091.73,0.00027397,2]
[364860019,1749279049682,-700.0,0.00027397,2]
[364860020,1749279049691,-156.73,0.00027397,2]
[364860021,1749279049701,-124151.16,0.00027397,2]
[364860022,1749279049711,-159.83716111,0.00027397,5]
[364860023,1749279049720,-288.65538369,0.00027397,5]
[364860024,1749279049730,-1000.0,0.000274,2]
[364860025,1749279049739,-401.61344742,0.000274,2]
[364860026,1749279049750,-197.65281716,0.00027407,2]
[364860027,1749279049759,-1000.0,0.00027409,2]
[364860028,1749279049768,-150.0,0.00027424,5]
[364860029,1749279049777,-200.0,0.00027424,5]
[364860030,1749279049786,-200.0,0.00027424,5]
[364860031,1749279049796,-500.0,0.00027424,2]
[364860032,1749279049805,-500.0,0.00027424,2]
[364860033,1749279049815,-836.0,0.00027424,5]
[364860034,1749279049824,-560.0,0.00027424,5]
[364860035,1749279049834,-500.0,0.00027424,5]
[364860036,1749279049844,-150.0,0.00027439,2]
[364860037,1749279049854,-150.0,0.00027452,5]
[364860038,1749279049863,-626.03327308,0.00027452,2]
[364860039,1749279049876,-500.0,0.00027452,2]
[364860040,1749279049888,-836.0,0.00027452,5]
[364860041,1749279049897,-560.0,0.00027452,5]
[364860042,1749279049908,-500.0,0.00027452,5]
[364860043,1749279049917,-1168.1807403,0.00027461,2]
[364860044,1749279049926,-163.07524585,0.00027461,2]
[364860045,1749279049935,-26265.35181076,0.00027461,2]
[364860046,1749279049945,-167.46057145,0.00027461,2]
[364860047,1749279049955,-196.14488393,0.00027461,5]
[364860048,1749279049965,-154.81865164,0.00027479,5]
[364860049,1749279049974,-500.0,0.00027479,2]
[364860050,1749279049984,-836.0,0.00027479,5]
[364860051,1749279049993,-560.0,0.00027479,5]
[364860052,1749279050003,-500.0,0.00027479,5]
[364860053,1749279050013,-168.33921903,0.00027479,30]
[364860054,1749279050022,-177.79677166,0.00027479,30]
[364860055,1749279050033,-2761.33,0.0002748,5]
[364860056,1749279050044,-58573.7657398,0.00027481,2]
[364860057,1749279050054,-1071.67,0.00027499,5]
[364860058,1749279050063,-2761.33,0.00027499,5]
[364860059,1749279050073,-35000.0,0.000275,2]
[364860060,1749279050083,-194.93371217,0.000275,2]
[364860061,1749279050092,-532.42478678,0.000275,2]
[364860062,1749279050102,-210.73,0.000275,2]
[364860063,1749279050111,-250000.0,0.000275,10]
[364860064,1749279050120,-6051.95,0.000275,2]
[364860065,1749279050129,-500.0,0.00027507,2]
[364860066,1749279050138,-836.0,0.00027507,5]
[364860067,1749279050147,-560.0,0.00027507,5]
[364860068,1749279050156,-304.04309163,0.00027507,5]
[364860069,1749279050165,-500.0,0.00027534,2]
[364860070,1749279050174,-836.0,0.00027534,5]
[364860071,1749279050183,-560.0,0.00027534,5]
[364860072,1749279050193,-156.587,0.00027534,2]
[364860073,1749279050202,-215.0738,0.00027534,2]
[364860074,1749279050212,-4997.1206578,0.00027542,2]
[364860075,1749279050221,-606.8714945,0.00027542,2]
[364860076,1749279050230,-1226.0725663,0.00027542,2]
[364860077,1749279050239,-6367.1133594,0.00027542,2]
[364860078,1749279050248,-1132.5402637,0.00027542,2]
[364860079,1749279050257,-225.2941642,0.00027542,2]
[364860080,1749279050267,-84308.8710921,0.00027542,2]
[364860081,1749279050278,-6638.3579625,0.00027542,2]
[364860082,1749279050288,-1152.0,0.00027548,2]
[364860083,1749279050298,-1071.67,0.00027559,5]
[364860084,1749279050309,-1071.67,0.0002756,5]
[364860085,1749279050320,-1071.67,0.0002756,5]
[364860086,1749279050330,-2761.33,0.0002756,5]
[364860087,1749279050340,-2761.33,0.0002756,5]
[364860088,1749279050350,-2761.33,0.0002756,5]
[364860089,1749279050360,-459.11690671,0.00027561,5]
[364860090,1749279050369,-480.0,0.00027561,5]
[364860091,1749279050378,-480.0,0.00027561,5]
[364860092,1749279050387,-480.0,0.00027561,5]
[364860093,1749279050398,-161.28671056,0.00027561,5]
[364860094,1749279050408,-480.0,0.00027561,5]
[364860095,1749279050417,-382.74147213,0.00027561,5]
[364860096,1749279050429,-492.3366481,0.00027561,5]
[364860097,1749279050438,-480.0,0.00027561,5]
[364860098,1749279050449,-480.0,0.00027561,5]
[364860099,1749279050458,-480.0,0.00027561,5]
[364860100,1749279050467,-480.0,0.00027561,5]
[364860101,1749279050479,-480.0,0.00027561,5]
[364860102,1749279050488,-501.9987913,0.00027561,5]
[364860103,1749279050498,-502.09465456,0.00027561,5]
[364860104,1749279050507,-480.0,0.00027561,5]
[364860105,1749279050516,-480.0,0.00027561,5]
[364860106,1749279050526,-571.94310867,0.00027561,5]
[364860107,1749279050538,-480.0,0.00027561,5]
[364860108,1749279050550,-480.0,0.00027561,5]
[364860109,1749279050560,-480.0,0.00027561,5]
[364860110,1749279050572,-484.03963335,0.00027561,5]
[364860111,1749279050581,-480.0,0.00027561,5]
[364860112,1749279050591,-480.0,0.00027561,5]
[364860113,1749279050601,-480.0,0.00027561,5]
[364860114,1749279050613,-244.94722977,0.00027561,5]
[364860115,1749279050622,-480.0,0.00027561,5]
[364860116,1749279050631,-514.60249879,0.00027561,5]
[364860117,1749279050641,-480.0,0.00027561,5]
[364860118,1749279050650,-925.24,0.00027561,5]
[364860119,1749279050659,-480.0,0.00027561,5]
[364860120,1749279050669,-480.0,0.00027561,5]
[364860121,1749279050678,-480.0,0.00027561,5]
[364860122,1749279050687,-480.0,0.00027561,5]
[364860123,1749279050697,-480.0,0.00027561,5]
[364860124,1749279050706,-480.0,0.00027561,5]
[364860125,1749279050715,-480.0,0.00027561,5]
[364860126,1749279050724,-480.0,0.00027561,5]
[364860127,1749279050733,-480.0,0.00027561,5]
[364860128,1749279050743,-480.0,0.00027561,5]
[364860129,1749279050752,-480.0,0.00027561,5]
[364860130,1749279050761,-480.0,0.00027561,5]
[364860131,1749279050771,-480.0,0.00027561,5]
[364860132,1749279050780,-480.0,0.00027561,5]
[364860133,1749279050790,-480.0,0.00027561,5]
[364860134,1749279050799,-746.67,0.00027561,5]
[364860135,1749279050808,-480.0,0.00027561,5]
[364860136,1749279050817,-480.0,0.00027561,5]
[364860137,1749279050826,-496.45483035,0.00027561,5]
[364860138,1749279050835,-480.0,0.00027561,5]
[364860139,1749279050845,-480.0,0.00027561,5]
[364860140,1749279050854,-182.49992192,0.00027561,5]
[364860141,1749279050863,-480.0,0.00027561,5]
[364860142,1749279050872,-480.0,0.00027561,5]
[364860143,1749279050882,-480.0,0.00027561,5]
[364860144,1749279050891,-480.0,0.00027561,5]
[364860145,1749279050900,-480.0,0.00027561,5]
[364860146,1749279050911,-480.0,0.00027561,5]
[364860147,1749279050920,-480.0,0.00027561,5]
[364860148,1749279050929,-480.0,0.00027561,5]
[364860149,1749279050939,-480.0,0.00027561,5]
[364860150,1749279050948,-480.0,0.00027561,5]
[364860151,1749279050958,-480.0,0.00027561,5]
[364860152,1749279050968,-480.0,0.00027561,5]
[364860153,1749279050978,-323.98550522,0.00027561,5]
[364860154,1749279050987,-480.0,0.00027561,5]
[364860155,1749279050996,-480.0,0.00027561,5]
[364860156,1749279051006,-497.82781857,0.00027561,5]
[364860157,1749279051015,-480.0,0.00027561,5]
[364860158,1749279051025,-749.61,0.00027561,5]
[364860159,1749279051034,-480.0,0.00027561,5]
[364860160,1749279051043,-480.0,0.00027561,5]
[364860161,1749279051053,-480.0,0.00027561,5]
[364860162,1749279051062,-577.15,0.00027561,5]
[364860163,1749279051073,-504.49700168,0.00027561,5]
[364860164,1749279051083,-480.0,0.00027561,5]
[364860165,1749279051092,-1795.2,0.00027561,5]
[364860166,1749279051101,-480.0,0.00027561,5]
[364860167,1749279051110,-480.0,0.00027561,5]
[364860168,1749279051119,-480.0,0.00027561,5]
[364860169,1749279051129,-480.0,0.00027561,5]
[364860170,1749279051138,-480.0,0.00027561,5]
[364860171,1749279051148,-480.0,0.00027561,5]
[364860172,1749279051157,-480.0,0.00027561,5]
[364860173,1749279051167,-480.0,0.00027561,5]
[364860174,1749279051177,-480.0,0.00027561,5]
[364860175,1749279051187,-480.0,0.00027561,5]
[364860176,1749279051196,-480.0,0.00027561,5]
[364860177,1749279051206,-480.0,0.00027561,5]
[364860178,1749279051215,-480.0,0.00027561,2]
[364860179,1749279051225,-480.0,0.00027561,5]
[364860180,1749279051234,-480.0,0.00027561,5]
[364860181,1749279051244,-480.0,0.00027561,5]
[364860182,1749279051254,-493.32430648,0.00027561,5]
[364860183,1749279051264,-480.0,0.00027561,5]
[364860184,1749279051274,-480.0,0.00027561,5]
[364860185,1749279051284,-593.78,0.00027561,5]
[364860186,1749279051295,-511.82,0.00027561,5]
[364860187,1749279051305,-480.0,0.00027561,5]
[364860188,1749279051314,-480.0,0.00027561,5]
[364860189,1749279051326,-189.7057062,0.00027561,5]
[364860190,1749279051337,-1307.03,0.00027561,5]
[364860191,1749279051347,-1163.74,0.00027561,5]
[364860192,1749279051357,-225.7,0.00027561,5]
[364860193,1749279051367,-480.0,0.00027561,5]
[364860194,1749279051377,-773.81,0.00027561,5]
[364860195,1749279051388,-480.0,0.00027561,5]
[364860196,1749279051399,-741.92,0.00027561,5]
[364860197,1749279051409,-561.12,0.00027561,5]
[364860198,1749279051419,-480.0,0.00027561,5]
[364860199,1749279051430,-480.0,0.00027561,5]
[364860200,1749279051444,-480.0,0.00027561,5]
[364860201,1749279051454,-497.65,0.00027561,5]
[364860202,1749279051464,-480.0,0.00027561,5]
[364860203,1749279051475,-480.0,0.00027561,5]
[364860204,1749279051486,-171.18724239,0.00027561,5]
[364860205,1749279051497,-480.0,0.00027561,5]
[364860206,1749279051508,-300.0,0.00027561,5]
[364860207,1749279051520,-480.0,0.00027561,5]
[364860208,1749279051531,-480.0,0.00027561,5]
[364860209,1749279051541,-480.0,0.00027561,5]
[364860210,1749279051557,-480.0,0.00027561,5]
[364860211,1749279051569,-961.55,0.00027561,5]
[364860212,1749279051580,-480.0,0.00027561,5]
[364860213,1749279051590,-480.0,0.00027561,5]
[364860214,1749279051600,-480.0,0.00027561,5]
[364860215,1749279051610,-480.0,0.00027561,5]
[364860216,1749279051622,-1092.4,0.00027561,5]
[364860217,1749279051633,-480.0,0.00027561,5]
[364860218,1749279051643,-480.0,0.00027561,5]
[364860219,1749279051653,-483.54,0.00027561,5]
[364860220,1749279051664,-580.63,0.00027561,5]
[364860221,1749279051675,-480.0,0.00027561,5]
[364860222,1749279051686,-480.0,0.00027561,5]
[364860223,1749279051696,-506.1,0.00027561,5]
[364860224,1749279051707,-480.0,0.00027561,5]
[364860225,1749279051717,-480.0,0.00027561,5]
[364860226,1749279051727,-506.55286826,0.00027561,5]
[364860227,1749279051738,-1268.78,0.00027561,5]
[364860228,1749279051748,-845.75,0.00027561,5]
[364860229,1749279051759,-480.0,0.00027561,5]
[364860230,1749279051769,-480.0,0.00027561,5]
[364860231,1749279051780,-503.25,0.00027561,5]
[364860232,1749279051790,-498.63197829,0.00027561,5]
[364860233,1749279051800,-480.0,0.00027561,5]
[364860234,1749279051811,-676.54,0.00027561,5]
[364860235,1749279051823,-604.38,0.00027561,5]
[364860236,1749279051834,-480.0,0.00027561,5]
[364860237,1749279051844,-620.02,0.00027561,5]
[364860238,1749279051854,-480.0,0.00027561,5]
[364860239,1749279051865,-517.3785128,0.00027561,5]
[364860240,1749279051876,-447.35815156,0.00027561,5]
[364860241,1749279051886,-480.0,0.00027561,5]
[364860242,1749279051897,-411.46984373,0.00027561,5]
[364860243,1749279051908,-480.0,0.00027561,5]
[364860244,1749279051919,-472.89036766,0.00027561,5]
[364860245,1749279051929,-480.0,0.00027561,5]
[364860246,1749279051940,-684.53,0.00027561,5]
[364860247,1749279051950,-829.76,0.00027561,5]
[364860248,1749279051961,-480.0,0.00027561,5]
[364860249,1749279051970,-480.0,0.00027561,5]
[364860250,1749279051986,-480.0,0.00027561,5]
[364860251,1749279051997,-480.0,0.00027561,5]
[364860252,1749279052007,-942.98,0.00027561,5]
[364860253,1749279052019,-480.0,0.00027561,5]
[364860254,1749279052029,-480.0,0.00027561,5]
[364860255,1749279052040,-540.32311789,0.00027561,5]
[364860256,1749279052051,-480.0,0.00027561,5]
[364860257,1749279052062,-480.0,0.00027561,5]
[364860258,1749279052075,-480.0,0.00027561,5]
[364860259,1749279052085,-480.0,0.00027561,5]
[364860260,1749279052096,-480.0,0.00027561,5]
[364860261,1749279052107,-480.0,0.00027561,5]
[364860262,1749279052117,-480.0,0.00027561,5]
[364860263,1749279052127,-550.5,0.00027561,5]
[364860264,1749279052137,-480.0,0.00027561,5]
[364860265,1749279052147,-480.0,0.00027561,5]
[364860266,1749279052158,-480.0,0.00027561,5]
[364860267,1749279052168,-502.38200868,0.00027561,5]
[364860268,1749279052178,-480.0,0.00027561,5]
[364860269,1749279052189,-480.0,0.00027561,5]
[364860270,1749279052199,-952.7,0.00027561,5]
[364860271,1749279052209,-561.89,0.00027561,5]
[364860272,1749279052220,-480.0,0.00027561,5]
[364860273,1749279052230,-559.63387992,0.00027561,5]
[364860274,1749279052240,-480.0,0.00027561,5]
[364860275,1749279052251,-480.0,0.00027561,5]
[364860276,1749279052261,-480.0,0.00027561,5]
[364860277,1749279052271,-480.0,0.00027561,5]
[364860278,1749279052282,-480.0,0.00027561,5]
[364860279,1749279052292,-480.0,0.00027561,5]
[364860280,1749279052303,-509.04,0.00027561,5]
[364860281,1749279052313,-480.0,0.00027561,5]
[364860282,1749279052324,-1113.45,0.00027561,5]
[364860283,1749279052335,-480.0,0.00027561,5]
[364860284,1749279052347,-480.0,0.00027561,5]
[364860285,1749279052358,-480.0,0.00027561,5]
[364860286,1749279052369,-480.0,0.00027561,5]
[364860287,1749279052380,-510.58,0.00027561,5]
[364860288,1749279052390,-480.0,0.00027561,5]
[364860289,1749279052401,-480.0,0.00027561,5]
[364860290,1749279052413,-624.96,0.00027561,5]
[364860291,1749279052438,-482.96911543,0.00027561,5]
[364860292,1749279052449,-480.0,0.00027561,5]
[364860293,1749279052460,-436.12102471,0.00027561,5]
[364860294,1749279052472,-480.0,0.00027561,5]
[364860295,1749279052484,-480.0,0.00027561,5]
[364860296,1749279052495,-480.0,0.00027561,5]
[364860297,1749279052507,-1106.46,0.00027561,5]
[364860298,1749279052518,-480.0,0.00027561,5]
[364860299,1749279052529,-480.0,0.00027561,5]
[364860300,1749279052540,-480.0,0.00027561,5]
[364860301,1749279052551,-480.0,0.00027561,5]
[364860302,1749279052562,-582.5,0.00027561,5]
[364860303,1749279052574,-480.0,0.00027561,5]
[364860304,1749279052585,-480.0,0.00027561,5]